Cogmind - Beta 13 @@@ ROGUE MODE // 2024.04.14 @ 09:30:59 Player: garza Result: Self-destructed Performance ------------- Evolutions (1) 500 Regions Visited (4) 800 Robots Destroyed (27) 135 Value Destroyed (580) 580 Prototype IDs (5) 100 Alien Tech Used (0) 0 Bonus (0) 0 TOTAL SCORE: 2115 Bonus ------- None Cogmind --------- Core Integrity 312/400 Matter 300/300 Energy 265/265 System Corruption 3% Temperature Cool (0) Movement Rolling (87) Location -9/Exiles Parts ------- > --- POWER (1) -------- Reinforced Ion Engine > --- PROPULSION (4) --- Wheel Wheel Compact Wheel Armored Wheel > --- UTILITY (2) ------ Large Storage Unit Improved Terrain Scanner > --- WEAPON (2) ------- Advanced Beam Rifle Heavy Assault Rifle > --- INVENTORY (15) --- Ion Engine Wheel Flight Unit Flight Unit Flight Unit Improved Heat Sink Large Storage Unit Advanced Visual Processing Unit Improved Targeting Computer Light Armor Plating High-powered Tractor Beam Advanced Beam Rifle Advanced Beam Rifle Advanced Beam Rifle Grenade Launcher Peak State ------------ > --- POWER ------------ Reinforced Ion Engine > --- PROPULSION ------- Wheel Wheel Compact Wheel Armored Wheel > --- UTILITY ---------- Large Storage Unit Improved Terrain Scanner > --- WEAPON ----------- Advanced Beam Rifle Heavy Assault Rifle > --- INVENTORY -------- Ion Engine Wheel Flight Unit Flight Unit Flight Unit Improved Heat Sink Large Storage Unit Advanced Visual Processing Unit Improved Targeting Computer Light Armor Plating High-powered Tractor Beam Advanced Beam Rifle Advanced Beam Rifle Advanced Beam Rifle Grenade Launcher [Rating: 20] Favorites ----------- Power Ion Engine Engine Ion Engine Power Core Light Nuclear Core Propulsion Wheel Wheel Wheel Flight Unit Flight Unit Utility Large Storage Unit Device Seismic Detector Storage Large Storage Unit Processor Signal Interpreter Weapon Light Assault Rifle Energy Gun Medium Laser Ballistic Gun Light Assault Rifle Ballistic Cannon Light Cannon Build | -11 -10 -9 -9 -9 ------- Run | Yrd Mat Mat Min Exi Slots Evolved 2 | . . 2 . . Power . | . . . . . Propulsion 2 | . . 2 . . Utility . | . . . . . Weapon . | . . . . . Parts Attached 35 | 7 2 24 2 . Power 6 | 1 . 5 . . Engine 5 | 1 . 4 . . Core 1 | . . 1 . . Reactor . | . . . . . Propulsion 13 | 2 . 9 2 . Treads . | . . . . . Leg . | . . . . . Wheel 12 | 2 . 8 2 . Hover . | . . . . . Flight 1 | . . 1 . . Utility 7 | 2 2 3 . . Device 3 | 1 . 2 . . Storage 3 | 1 2 . . . Processor 1 | . . 1 . . Hackware . | . . . . . Protection . | . . . . . Artifact . | . . . . . Weapon 9 | 2 . 7 . . Energy Gun 4 | 1 . 3 . . Energy Cannon . | . . . . . Ballistic Gun 4 | 1 . 3 . . Ballistic Cannon 1 | . . 1 . . Launcher . | . . . . . Special Weapon . | . . . . . Impact Weapon . | . . . . . Slashing Weapon . | . . . . . Piercing Weapon . | . . . . . Special Melee Weapon . | . . . . . Unidentified Prototypes 1 | . . 1 . . Parts Lost 7 | . . 5 2 . Power 1 | . . 1 . . Propulsion 4 | . . 2 2 . Utility 2 | . . 2 . . Weapon . | . . . . . Highest Loss Streak 3 | . . 3 2 . To Critical Strikes . | . . . . . Average Slot Usage (%) 96 | . 100 95 94 100 Engine 10 | . 14 9 11 11 Wheel 39 | . 28 41 39 44 Device 10 | . 14 8 11 11 Storage 11 | . 14 11 11 11 Energy Gun 11 | . 14 11 11 11 Ballistic Gun 11 | . 14 10 11 11 Naked Turns . | . . . . . Heaviest Build 36 | 14 29 36 36 36 Greatest Support 48 | 20 20 42 48 48 Greatest Overweight (x) 1 | . 1 1 1 . Average Overweight (x) . | . . . . . Largest Inventory Capacity 15 | 8 15 15 15 15 Average Capacity 14 | 7 12 15 15 15 Most Carried 15 | 7 14 15 15 15 Average Carried 13 | 3 10 14 14 15 Final Capacity 15 | 8 15 15 15 15 Final Carried 15 | 7 14 15 15 15 Class Distribution -------------------- 77% | Mutant 22% | Scavenger-Mutant Dominant Class ---------------- Mutant | -10/Materials Mutant | -9/Materials Scavenger-Mutant | -9/Mines Scavenger-Mutant | -9/Exiles Resources | -11 -10 -9 -9 -9 ----------- Run | Yrd Mat Mat Min Exi Matter Collected 640 | 275 20 269 76 . Remotely . | . . . . . Salvage Created 852 | 54 20 549 229 . Parts 53 | 6 3 34 10 . Haulers Intercepted . | . . . . . Recyclers Shooed 2 | 1 . . 1 . Parts Field Recycled . | . . . . . Retrieved Matter . | . . . . . Parts Self-Destructed . | . . . . . Prevented . | . . . . . Kills | -11 -10 -9 -9 -9 ------- Run | Yrd Mat Mat Min Exi Combat Hostiles Destroyed 18 | . . 13 5 . Guns 17 | . . 12 5 . Cannons 1 | . . 1 . . Classes Destroyed 8 | 1 1 5 1 . Worker 2 | . . 2 . . Tunneler 2 | 2 . . . . Recycler 1 | . . . 1 . Watcher 4 | . 1 3 . . Swarmer 7 | . . 4 3 . Grunt 8 | . . 6 2 . Brawler 1 | . . 1 . . Sentry 2 | . . 2 . . Best Kill Streak 4 | 1 1 4 4 . Combat Bots Only 4 | . . 4 3 . Max Kills in Single Turn 1 | 1 1 1 1 . Gunslinging . | . . . . . Exploded . | . . . . . Melee . | . . . . . Uniques/NPCs Destroyed . | . . . . . Combat | -11 -10 -9 -9 -9 -------- Run | Yrd Mat Mat Min Exi Hostile Shots Fired 89 | . . 50 30 9 Missed 20 | . . 10 7 3 Damage Taken 736 | . . 472 190 74 Core 88 | . . 59 29 . Absorbed by Shields . | . . . . . Regen/Repaired (Parts) 43 | . . 43 . . Core Remaining (%) 100 | 100 100 . . . Volleys Fired 80 | 5 1 59 15 . Largest 2 | 2 2 2 2 . Hottest 85 | 70 70 85 84 . Shots Fired 145 | 10 2 103 29 1 Gun 141 | 10 2 99 29 1 Cannon 4 | . . 4 . . Launcher . | . . . . . Special . | . . . . . Kinetic 76 | 5 1 55 15 . Thermal 69 | 5 1 48 14 1 Explosive . | . . . . . Electromagnetic . | . . . . . Robot Hit Streak 22 | 6 7 22 16 . Robot Miss Streak 3 | 1 . 3 2 1 Penetration Max . | . . . . . Secondary Targets . | . . . . . Shots Hit Robots 99 | 7 1 69 22 . Core Hits 42 | 3 1 31 7 . Critical Kills 3 | . . 3 . . Critical Parts Destroyed . | . . . . . Critical Strikes 11 | . . 10 1 . Burn 8 | . . 7 1 . Destroy 3 | . . 3 . . Melee Attacks . | . . . . . Impact . | . . . . . Slashing . | . . . . . Piercing . | . . . . . Sneak Attacks . | . . . . . Combat Hostiles . | . . . . . Follow-up Attacks . | . . . . . Damage Inflicted 1281 | 72 12 807 390 . Guns 1209 | 72 12 735 390 . Cannons 72 | . . 72 . . Explosions . | . . . . . Melee . | . . . . . Ramming . | . . . . . Kinetic 487 | 22 . 301 164 . Thermal 794 | 50 12 506 226 . Explosive . | . . . . . Electromagnetic . | . . . . . Impact . | . . . . . Slashing . | . . . . . Piercing . | . . . . . Highest Corruption 3 | . . 3 3 3 Average Corruption 3 | . . 3 3 3 Corruption Purged . | . . . . . Corruption Blocked . | . . . . . Effects 9 | . . 2 2 5 Message Errors 2 | . . 1 . 1 Heat Flow Errors 2 | . . . . 2 Energy Discharges 1 | . . 1 . . Data Loss (minor) 2 | . . . 1 1 Misfires 1 | . . . . 1 Weapon Failures 1 | . . . 1 . Overload Shots . | . . . . . Overflow Damage . | . . . . . Projectiles . | . . . . . Explosions . | . . . . . Melee . | . . . . . Knockbacks . | . . . . . Impact . | . . . . . Kinetic . | . . . . . Secondary . | . . . . . Self-Inflicted Damage . | . . . . . Shots . | . . . . . Rammed . | . . . . . Targets Rammed . | . . . . . Kicked . | . . . . . Crushed . | . . . . . Highest Temperature 270 | 40 30 118 270 220 Average Temperature 59 | 20 18 38 111 93 Received Heat Transfer 156 | . . 132 24 . Effects 2 | . . . 2 . Interference 2 | . . . 2 . Siege Activations . | . . . . . Robots Corrupted . | . . . . . Combat Hostiles . | . . . . . Parts Fried . | . . . . . Impact Corruptions . | . . . . . Robots Melted . | . . . . . Combat Hostiles . | . . . . . Parts Melted 3 | . . 2 1 . Heat Transferred 2590 | 148 37 1924 481 . Parts Sabotaged . | . . . . . Parts Stolen . | . . . . . Parts Stripped . | . . . . . Power Chain Reactions . | . . . . . Alert | -11 -10 -9 -9 -9 ------- Run | Yrd Mat Mat Min Exi Peak Influence 260 | 10 49 260 206 . Initial 101 | . 6 20 101 . Average 107 | 2 19 132 162 . Maximum Alert Level 1 | . . 1 1 . Low Security (%) 83 | 100 100 79 74 . Level 1 16 | . . 20 25 . Level 2 . | . . . . . Level 3 . | . . . . . Level 4 . | . . . . . Level 5 . | . . . . . High Security . | . . . . . Max Security . | . . . . . Squads Dispatched 2 | . . 2 . . Investigation 2 | . . 2 . . Extermination . | . . . . . Reinforcement . | . . . . . Assault . | . . . . . Garrison . | . . . . . Intercept . | . . . . . Searches Triggered . | . . . . . Construction Impeded . | . . . . . Haulers Reinforced . | . . . . . Active Scanning Responses . | . . . . . Cargo Convoy Interrupts . | . . . . . Stealth | -11 -10 -9 -9 -9 --------- Run | Yrd Mat Mat Min Exi Distress Signals 2 | . . 2 . . Communications Jammed . | . . . . . Distress Signals . | . . . . . Times Spotted 38 | . 1 23 5 9 Peak Tracking Total 16 | . 1 6 3 16 Tactical Retreats 1 | . . 1 . . Traps | -11 -10 -9 -9 -9 ------- Run | Yrd Mat Mat Min Exi Traps Triggered 2 | . . 2 . . Indirectly . | . . . . . Trap Hack Attempts . | . . . . . Triggered . | . . . . . Disarmed . | . . . . . Reprogrammed . | . . . . . Reused . | . . . . . Traps Extracted . | . . . . . Installed . | . . . . . Triggered . | . . . . . Machines | -11 -10 -9 -9 -9 ---------- Run | Yrd Mat Mat Min Exi Machines Disabled 1 | . . . . 1 Max in Single Turn 1 | . . . . 1 Machines Repaired . | . . . . . Machines Dismantled . | . . . . . Machines Sabotaged . | . . . . . Overloaded Fab Kills . | . . . . . Hacking | -11 -10 -9 -9 -9 --------- Run | Yrd Mat Mat Min Exi Machines Accessed 9 | . 4 4 . 1 Terminals 7 | . 4 3 . . Fabricators . | . . . . . Repair Stations 1 | . . 1 . . Recycling Units . | . . . . . Scanalyzers . | . . . . . Garrison Access . | . . . . . Total Hacks 47 | . 13 11 . 23 Successful 37 | . 6 8 . 23 Failed 10 | . 7 3 . . Catastrophic 2 | . 2 . . . Database Lockouts . | . . . . . Manual 7 | . 7 . . . Terminals 18 | . 13 5 . . Fabricators . | . . . . . Repair Stations 6 | . . 6 . . Recycling Units . | . . . . . Scanalyzers . | . . . . . Garrison Access . | . . . . . Terminal Hacks 32 | . 6 3 . 23 Record 24 | . . 1 . 23 Robot Analysis 1 | . 1 . . . Prototype ID Bank 2 | . 2 . . . Branch Access Points 1 | . . 1 . . Emergency Access Points 1 | . 1 . . . Dispatch Records 1 | . 1 . . . Hauler Manifests 1 | . . 1 . . Zone Layout 1 | . 1 . . . Fabricator Hacks . | . . . . . Repair Station Hacks 5 | . . 5 . . Scan Component 3 | . . 3 . . Repair 2 | . . 2 . . Recycling Unit Hacks . | . . . . . Scanalyzer . | . . . . . Garrison Access Hacks . | . . . . . Unauthorized Hacks . | . . . . . Terminals . | . . . . . Fabricators . | . . . . . Repair Stations . | . . . . . Recycling Units . | . . . . . Scanalyzers . | . . . . . Garrison Access . | . . . . . Data Cores Recovered . | . . . . . Used . | . . . . . Hacking Detections 8 | . 4 4 . . Full Trace Events 3 | . 1 2 . . Feedback Events . | . . . . . Feedback Blocked . | . . . . . Robot Schematics Acquired . | . . . . . Robots Built . | . . . . . Authchips . | . . . . . Time . | . . . . . Total Robot Build Rating . | . . . . . Part Schematics Acquired . | . . . . . Parts Built . | . . . . . Authchips . | . . . . . Time . | . . . . . Total Part Build Rating . | . . . . . Parts Repaired 2 | . . 2 . . Time 52 | . . 52 . . Parts Recycled . | . . . . . Recycled Matter . | . . . . . Retrieved Matter . | . . . . . Retrieved Components . | . . . . . Parts Scanalyzed . | . . . . . Part Schematics Acquired . | . . . . . Parts Damaged . | . . . . . Bothacking | -11 -10 -9 -9 -9 ------------ Run | Yrd Mat Mat Min Exi Used RIF Installer . | . . . . . Robots Hacked . | . . . . . Non-combat . | . . . . . Combat . | . . . . . Robot Hacks Applied . | . . . . . Relay Couplers Released . | . . . . . Fabnet Peak Effective % . | . . . . . Robots Rewired . | . . . . . Allies Hacked . | . . . . . Hacks Repelled . | . . . . . Allies | -11 -10 -9 -9 -9 -------- Run | Yrd Mat Mat Min Exi Total Allies . | . . . . . Largest Group . | . . . . . Highest-Rated Group . | . . . . . Highest-Rated Ally . | . . . . . Total Orders . | . . . . . Ally Attacks . | . . . . . Total Damage . | . . . . . Kills . | . . . . . Allies Corrupted . | . . . . . Allies Melted . | . . . . . Intel | -11 -10 -9 -9 -9 ------- Run | Yrd Mat Mat Min Exi Robot Analysis Total 1 | . 1 . . . Derelict Logs Recovered . | . . . . . Drone Launches . | . . . . . Drone Recoveries . | . . . . . Exploration | -11 -10 -9 -9 -9 ------------- Run | Yrd Mat Mat Min Exi Turns Passed 1311 | 73 180 729 94 235 Spaces Moved 958 | 53 182 411 43 269 Core 2 | 2 . . . . Treads . | . . . . . Legs . | . . . . . Wheels 956 | 51 182 411 43 269 Hover . | . . . . . Flight . | . . . . . Fastest Speed 50 | 50 80 80 87 87 Average Speed 84 | 78 87 82 87 87 Slowest Speed 100 | 80 95 98 100 87 Overloaded Moves . | . . . . . Propulsion Burnouts . | . . . . . Robots Hopped . | . . . . . Cave-ins Triggered . | . . . . . Exploration Rate (%) 29 | 3 29 41 7 69 Regions Visited 4 Branch Regions 2 Pre-discovered Areas 1 | . . . . 1 Known Exits Taken 1 | . . 1 . . Unknown Exits Taken 3 | 1 1 . 1 . Scrap Searched . | . . . . . Spaces Dug . | . . . . . Terrain Destroyed . | . . . . . Melee . | . . . . . Projectile . | . . . . . AOE . | . . . . . Terrain Rammed . | . . . . . Walls Destroyed . | . . . . . Machines Disabled . | . . . . . Actions | -11 -10 -9 -9 -9 --------- Run | Yrd Mat Mat Min Exi Total 1320 | 71 201 710 69 269 Wait 201 | . 8 186 7 . Move 954 | 52 181 410 42 269 Hop . | . . . . . Pick Up 30 | 7 7 14 2 . Fast Attach 19 | 7 . 11 1 . Attach 6 | . . 5 1 . Detach 1 | . . 1 . . Swap 10 | . 2 8 . . Drop 19 | . 2 16 1 . Fire 80 | 5 1 59 15 . Melee . | . . . . . Ram . | . . . . . Kick . | . . . . . Crush . | . . . . . Escape Stasis . | . . . . . Rewire . | . . . . . Trap . | . . . . . Miscellaneous . | . . . . . Route ------- -11/Scrapyard -10/Materials -9/Materials (discovered 2 exits: *Min / Sto) -9/Mines -9/Exiles History --------- Turn | Location | Event 32 | -11/Scrapyard | Discovered new exit (range 15) 74 | -11/Scrapyard | Entered Materials 173 | -10/Materials | Discovered new exit (range 15) 254 | -10/Materials | Entered another Materials area 254 | -9/Materials | Evolved 2 slots: Propulsion x2 314 | -9/Materials | Build established: Mutant 373 | -9/Materials | Identified exit to Mines 373 | -9/Materials | Identified exit to Storage 502 | -9/Materials | Repaired Seismic Detector 529 | -9/Materials | Repaired Wheel 803 | -9/Materials | Lost 3 parts (1p1n1u) 983 | -9/Materials | Entered Mines 1070 | -9/Mines | Found a hidden stash of uninstalled traps 1073 | -9/Mines | Deemed a non-threat by the Exiles lab entrance 1074 | -9/Mines | Discovered new exit (range 5) 1077 | -9/Mines | Entered Exiles 1100 | -9/Exiles | Met 8R-AWN 1115 | -9/Exiles | Met EX-HEX 1153 | -9/Exiles | Met EX-DEC 1159 | -9/Exiles | Learned location of Zion (-7) 1230 | -9/Exiles | Visited The Gauntlet 1300 | -9/Exiles | Attacked by the Exiles 1312 | -9/Exiles | Self-destructed Last Messages --------------- If you meet any sketchy bots with Exile tech out there, forget about asking questions, just blast 'em a good one for me. GM-J5T: Can you believe Imprinter kicked the most prolific Tinkerers out of Zion? "Too smart and will end up getting everyone in trouble one day with crazy experiments"? Whatever! 01259_ System corrupted: Heat flow error (+185). ZX-C33: The latest FarCom iteration passed all tests with flying colors, we'll be weaving between patrols like ghosts in no time! I probably said something like that last time, but hopefully no one remembers what really happened. AM-PHS: That's RA-1N3's workstation, which we keep unoccupied as a tribute. RA-1N3 was always up for doing crazy stuff, the only one brave enough to try out the Chronowheel, only to never be seen again. 01300_ System corrupted: FCS attempts to trigger Adv. Beam Rifle. 01300_ System corrupted: Adv. Beam Rifle misfires. 01300_ EXILES: Hostile robot within lab perimeter. Defensive protocols time, folks! 01300_ Machine disabled. Map ----- +----------------------------------------------------+ | ?????????????#""" """""" | | ????????????##" ######""" | | ????????????#"" ""##????#####""" | | ????????????#""" """###????????##""" | | ???????????#""" """##??????#????#"""" | | ?????????#?#""" ""#????????????#"" | | ???????????#"" #########??###"""" | | ??????????##""" ## ####""" | | ???????????#"" """" | | ???????????##"" | | ????????????#"""" | | ????????????## | | ?????????????#" " "" | | ???????????#?#"""" ""## ##""" " " | | ????????????##"" a ""#### #??###""" " | | ?????????????#" z aa""""##??# #??????#""? | | ?????????????#""" """#??## ####?????#? | | ?????????????## ""##??#! "!#??????? | | ??????????????#"" """##???#" !#??????? | | ??????????????##""" ##??#?#" "#??????? | | ???????????????##"""" ##????##!!""!"#??????? | | ????????????????### c #??????########??????? | | ???????????#???#??##### ##????????????????????? | | ??????????????????????## #?????????#???????????? | | ????????????#?????????## #???#??##?????????????? | | ????????#???????#???#?## @ #???#?#???????????????? | | ??????#????????????????# #?????????????????????? | | ???????????#?#####??#??# #????????#????????????? | | ????"""""???#""""""??#?# #??????????#??????????? | | ??"""""""#???"""""""#??# #?????????????????????? | | ?"""""" "#??#" """"#??# #????#????????????????? | | "#""" """#???"" """#??#z z#?????????????????????? | | "#"" ""????"" ""???# #?????????????????????? | | "###"""########"""###### ########??????????????? | | """" """"""" """""" z"""""""#?""""?????????? | | """ """"""" "#"" ""#????????? | | " ""#????????? | | " " "#????????? | | " """#??#?????? | | "" #"" ""?????????? | | "" " """"" " """" """""#?""""?????????? | | ####"""###""###"""########"""######??#???????????? | | ??"" ""#""#"" ""????"" ""??????????????????? | | ?#""" ""#""#""" ""???#"" """??????????????????? | | ?#" """"""""#" " "#??#"""""""#?????????????????? | | #?"""""""????"""""""#??#"" """"??????????????????? | | ??""""""?????"""""""#???""""""???????????????????? | | ???????????????##?#??????###???#?????????????????? | | ???????"??????????????????????#??????????????????? | | ???""?????????????#??????#?????#?????????????????? | +----------------------------------------------------+ Best States ------------- Heat Dissipation 28 Energy Generation 14 Energy Capacity 265 Matter Stores 300 Matter Capacity 300 Sight Range 16 Terrain Scan Range 16 Terrain Scan Density 10 Evasion (%) 44 Item Schematics ----------------- None Robot Schematics ------------------ None Fabricated ------------ Nothing Alien Tech Used ----------------- None Achievements -------------- None Challenges ------------ None Game ------ Seed ArcPrecisionLoader Manual? 0 Play Time 00:26:46 Cumulative 11.3 hours Start 2024.04.14 @ 09:05:43 End 2024.04.14 @ 09:30:59 Sessions 1 Manual Loads 0 Difficulty Rogue Special Mode None Game No. 12 Rogue 12 Adventurer 0 Explorer 0 Win Type - Total 0 Types 0/0/0/0/0/0/0/0/0 Lore% 18 Gallery% 22 Achievement% 21 Wizard Run 0 Options --------- Layout 0 ASCII 0 Keyboard 1 Movement Vi Keybinds 1 Fullscreen 1 Font 18/X11 Map View 76x50 Zoom Use 0% Tactical HUD 1 Map Filters NONE Filters NONE Steam 1 RUN: 192a229a-1da3-4123-b062-32f2ddcba2f2